Cogmind - Beta 13 *** ADVENTURER MODE // 2024.07.11 @ 23:01:39 Player: AnotherZach Result: Destroyed by S-27 Virus with Autogun Performance ------------- Evolutions (3) 1500 Regions Visited (10) 2000 Robots Destroyed (217) 1085 Value Destroyed (8166) 8166 Prototype IDs (5) 100 Alien Tech Used (0) 0 Bonus (8767) 8767 TOTAL SCORE: 21618 Bonus ------- Triggered High Security 500 High Alert Combat Kills 2297 Follower Combat Kills 4502 Entered Garrisons 600 Used RIF Installer 2000 Friendly Fire -1132 Cogmind --------- Core Integrity 0/700 Matter 233/300 Energy 100/100 System Corruption 0% Temperature Cool (0) Movement Core (50) Location -7/Factory Parts ------- > --- POWER (1) -------- (None) > --- PROPULSION (4) --- (None) > --- UTILITY (4) ------ Authchip [R/Combat] > --- WEAPON (4) ------- (None) > --- INVENTORY (5) ---- Kinecellerator Authchip [R/Combat] Peak State ------------ > --- POWER ------------ Antimatter Reactor > --- PROPULSION ------- Myomer Leg Myomer Leg Myomer Leg Myomer Leg > --- UTILITY ---------- Huge Storage Unit System Shield Authchip [R/NC] System Restoration Module > --- WEAPON ----------- Phase Gun High-powered Shotgun Railgun Heavy Gauss Cannon > --- INVENTORY -------- Reinforced Deuterium Engine Hybrid Antimatter Reactor Myomer Leg Improved Heat Sink Compact Battery Compact Battery Compact Battery High-capacity Matter Pod Stasis Canceller Hacking Suite Authchip [R/NC] Authchip [R/Combat] Authchip [R/Combat] Authchip [R/Combat] Authchip [R/Combat] Authchip [R/Combat] Authchip [R/Combat] Authchip [R/Combat] Authchip [R/Combat] Authchip [R/Combat] Authchip [R/Combat] Authchip [R/Combat] Missile Launcher Missile Launcher Remote Datajack [Rating: 80] Favorites ----------- Power Antimatter Reactor Engine Reinforced Deuterium Engine Power Core Light Nuclear Core Reactor Antimatter Reactor Propulsion Myomer Leg Treads Light Treads Leg Myomer Leg Wheel Wheel Utility Huge Storage Unit Device Improved Heat Sink Storage Huge Storage Unit Hackware Hacking Suite Protection Light Armor Plating Weapon Katana Energy Gun Heavy Particle Gun Ballistic Gun High-powered Shotgun Ballistic Cannon Heavy Gauss Cannon Launcher Missile Launcher Special Weapon Remote Datajack Impact Weapon Heavy Flail Slashing Weapon Katana Special Melee Weapon Datajack Build | -11 -10 -10 -10 -8 -8 -7 -7 -7 -7 -7 ------- Run | Yrd Mat Min Sub Mat Gar Fac Gar Fac Gar Fac Slots Evolved 6 | . . . . 4 . 2 . . . . Power . | . . . . . . . . . . . Propulsion 2 | . . . . 2 . . . . . . Utility 2 | . . . . 1 . 1 . . . . Weapon 2 | . . . . 1 . 1 . . . . Parts Attached 238 | 7 12 2 16 22 29 43 31 22 15 39 Power 16 | 1 1 1 2 3 2 2 2 . . 2 Engine 9 | 1 . 1 2 2 1 1 . . . 1 Core 5 | . 1 . . 1 1 1 1 . . . Reactor 2 | . . . . . . . 1 . . 1 Propulsion 57 | 2 2 . 5 7 9 10 9 4 . 9 Treads 29 | 2 2 . 2 5 9 4 5 . . . Leg 17 | . . . . . . . 4 4 . 9 Wheel 11 | . . . 3 2 . 6 . . . . Hover . | . . . . . . . . . . . Flight . | . . . . . . . . . . . Utility 77 | 2 4 . 2 4 6 20 6 10 8 15 Device 20 | 1 1 . . 2 1 2 3 1 3 6 Storage 17 | 1 3 . 1 1 3 3 . 1 3 1 Processor . | . . . . . . . . . . . Hackware 35 | . . . . . . 15 3 8 2 7 Protection 5 | . . . 1 1 2 . . . . 1 Artifact . | . . . . . . . . . . . Weapon 88 | 2 5 1 7 8 12 11 14 8 7 13 Energy Gun 16 | 1 3 . . 3 . 3 2 3 . 1 Energy Cannon . | . . . . . . . . . . . Ballistic Gun 33 | 1 2 . 5 5 8 4 1 2 4 1 Ballistic Cannon 7 | . . . . . 1 1 2 . . 3 Launcher 11 | . . . . . . . 3 2 1 5 Special Weapon 5 | . . . . . . 1 3 . 1 . Impact Weapon 2 | . . . . . . . . . . 2 Slashing Weapon 12 | . . 1 2 . 3 . 3 1 1 1 Piercing Weapon . | . . . . . . . . . . . Special Melee Weapon 2 | . . . . . . 2 . . . . Unidentified Prototypes 5 | . . . . 4 . . . 1 . . Parts Lost 32 | . 3 1 4 . 2 2 1 1 2 16 Power 4 | . . 1 1 . 1 . . . . 1 Propulsion 10 | . . . . . 1 1 1 1 . 6 Utility 8 | . . . 2 . . 1 . . 2 3 Weapon 10 | . 3 . 1 . . . . . . 6 Highest Loss Streak 5 | . 1 1 2 . 2 1 1 1 1 5 To Critical Strikes . | . . . . . . . . . . . Average Slot Usage (%) 95 | . 99 100 98 96 98 97 99 91 89 92 Engine 2 | . 1 6 14 4 5 . 6 . . . Core 3 | . 12 7 . 4 3 6 . . . . Reactor 2 | . . . . . . . . 7 7 6 Treads 16 | . 28 28 9 25 35 20 28 9 . . Leg 10 | . . . . . . . . 15 30 28 Wheel 2 | . . . 18 8 . 8 . . . . Device 8 | . 14 14 2 9 9 9 9 6 5 6 Storage 10 | . 14 14 17 15 9 8 7 8 11 9 Hackware 7 | . . . . . . 8 12 13 12 8 Protection 1 | . . . 7 2 8 1 . . . 2 Energy Gun 5 | . 12 . . . . 4 16 4 . 5 Ballistic Gun 12 | . 15 26 23 26 21 16 . 6 5 13 Ballistic Cannon 1 | . . . . . . 6 . 3 . . Launcher 2 | . . . . . . . 4 1 4 5 Special Weapon 1 | . . . . . . . 2 2 2 . Slashing Weapon 2 | . . 1 3 . 4 . 4 6 7 . Naked Turns 1 | . . . . . . . . . . 1 Heaviest Build 135 | 12 90 88 97 100 114 112 120 124 113 135 Greatest Support 120 | 40 40 40 40 80 80 88 120 120 100 100 Greatest Overweight (x) 4 | . 2 2 4 1 1 4 3 1 1 2 Average Overweight (x) 1 | . 1 2 2 1 . 1 . . . . Largest Inventory Capacity 25 | 8 25 25 25 25 25 25 25 25 25 25 Average Capacity 24 | 7 23 25 25 25 22 23 25 25 25 24 Most Carried 25 | 3 25 25 25 25 25 25 25 25 25 25 Average Carried 22 | . 19 24 24 24 22 22 24 23 24 22 Final Capacity 25 | 8 25 25 25 25 25 25 25 25 25 5 Final Carried 25 | . 25 25 25 23 25 25 25 23 25 2 Class Distribution -------------------- 22% | Mutant 12% | Hacker-Gunner 12% | Commander-Gunner 8% | Commander-Mutant 8% | Commander-Tank 6% | Bothacker-Gunner 6% | Scavenger-Tank 4% | Bothacker-Tank 3% | Scavenger-Skirmisher 3% | Scavenger-Mutant 3% | Hacker-Mutant Dominant Class ---------------- Mutant | -10/Materials Mutant | -10/Mines Mutant | -10/Subcaves Derelict-Gunner | -8/Materials Scavenger-Tank | -8/Garrison Commander-Gunner | -7/Factory Bothacker-Gunner | -7/Garrison Hacker-Gunner | -7/Factory Commander-Mutant | -7/Garrison Commander-Tank | -7/Factory Resources | -11 -10 -10 -10 -8 -8 -7 -7 -7 -7 -7 ----------- Run | Yrd Mat Min Sub Mat Gar Fac Gar Fac Gar Fac Matter Collected 6450 | 243 620 64 201 390 990 1078 399 1100 292 1073 Remotely 661 | 145 442 64 . . . . . . 10 . Salvage Created 7337 | 98 932 176 210 792 1029 1041 710 762 354 1233 Parts 410 | 5 63 14 13 44 60 45 21 42 16 87 Haulers Intercepted 7 | . 2 . . 1 . 1 . . . 3 Recyclers Shooed . | . . . . . . . . . . . Parts Field Recycled . | . . . . . . . . . . . Retrieved Matter . | . . . . . . . . . . . Parts Self-Destructed 3 | . . . 3 . . . . . . . Prevented . | . . . . . . . . . . . Kills | -11 -10 -10 -10 -8 -8 -7 -7 -7 -7 -7 ------- Run | Yrd Mat Min Sub Mat Gar Fac Gar Fac Gar Fac Combat Hostiles Destroyed 149 | . 17 5 6 13 27 16 15 17 7 26 Melee 8 | . . . 2 . 1 . 1 1 3 . Guns 96 | . 16 5 4 13 24 13 8 3 . 10 Cannons 14 | . . . . . 2 3 . 9 . . AOE 29 | . 1 . . . . . 5 4 4 15 Classes Destroyed 20 | 2 5 . 1 5 1 1 1 . . 4 Worker 17 | . 2 . . 1 . 2 . 2 . 10 Builder 9 | . . . . 1 . . . 1 . 7 Tunneler 7 | 1 . 2 . 1 . . . 1 . 2 Hauler 7 | . 2 . . 1 . 1 . . . 3 Recycler 11 | 1 2 . . 1 . 3 . 2 . 2 Mechanic 2 | . . . . . . . . . . 2 Operator 4 | . . . . 1 . 1 . . . 2 Watcher 9 | . 2 . . 1 . 4 1 1 . . Swarmer 35 | . 6 3 . . 12 4 2 3 5 . Cutter 3 | . . . . . 3 . . . . . Grunt 70 | . 11 2 . 7 6 9 5 9 2 19 Brawler 3 | . . . . 2 . . . . . 1 Duelist 3 | . . . . 2 . 1 . . . . Protector 1 | . . . . . . . . . . 1 Sentry 17 | . . . . 2 6 . 7 . . 2 Demolisher 1 | . . . . . . . . . . 1 Specialist 1 | . . . . . . . . . . 1 Hunter 3 | . . . . . . . 2 1 . . Programmer 8 | . . . . . . 2 1 4 . 1 Subdweller 6 | . . . 6 . . . . . . . Best Kill Streak 12 | 2 5 4 2 5 6 6 5 4 4 12 Combat Bots Only 6 | . 4 2 2 3 6 4 5 3 4 5 Max Kills in Single Turn 5 | 1 2 1 1 1 2 2 2 4 2 5 Gunslinging 1 | . 1 . . . 1 . . . . . Exploded 3 | . 1 . . . . . 1 3 2 2 Melee 1 | . . . 1 . 1 . 1 1 1 . Uniques/NPCs Destroyed . | . . . . . . . . . . . Combat | -11 -10 -10 -10 -8 -8 -7 -7 -7 -7 -7 -------- Run | Yrd Mat Min Sub Mat Gar Fac Gar Fac Gar Fac Hostile Shots Fired 1149 | . 54 35 63 33 191 99 248 85 59 282 Missed 359 | . 10 11 22 8 45 32 105 26 10 90 Damage Taken 8711 | . 385 210 749 409 1410 844 1164 786 589 2165 Core 1043 | . 37 53 93 24 129 82 122 90 90 323 Absorbed by Shields 629 | . . . . . . . 92 48 107 382 Redirected to Shielding 13 | . . . . . . 13 . . . . Ignored by Resistances 2810 | . 120 65 208 115 472 256 394 236 199 745 Regen/Repaired (Parts) 575 | . . . . . . 22 10 305 162 76 Core Remaining (%) 66 | 100 . . 26 . 72 . . . . . Volleys Fired 398 | 4 48 24 27 32 53 51 40 52 6 61 Largest 4 | 2 2 2 2 3 3 4 4 4 3 4 Hottest 213 | 70 80 40 50 88 85 213 201 136 85 209 Shots Fired 960 | 8 91 48 50 90 133 180 93 99 9 159 Gun 799 | 8 91 48 50 90 131 134 75 55 3 114 Cannon 81 | . . . . . 2 43 . 30 . 6 Launcher 64 | . . . . . . . 15 7 3 39 Special 16 | . . . . . . 3 3 7 3 . Kinetic 675 | 4 36 48 50 90 133 155 1 74 3 81 Thermal 142 | 4 . . . . . 22 74 3 . 39 Explosive 64 | . . . . . . . 15 7 3 39 Electromagnetic 63 | . 55 . . . . . . 8 . . Robot Hit Streak 48 | 3 18 22 15 18 48 23 31 23 2 10 Robot Miss Streak 8 | 1 2 3 2 4 1 4 2 3 3 8 Penetration Max 1 | . . . . . . 1 . . . . Secondary Targets 13 | . 4 . 1 . 6 . 2 . . . Max Gunslinging Chain 1 | . 1 . 1 . 1 . 1 . . . Shots Hit Robots 740 | 6 73 35 55 63 126 109 71 74 26 102 Core Hits 434 | 4 39 17 11 38 51 47 43 38 15 131 Critical Kills 2 | . . 1 . 1 . . . . . . Critical Parts Destroyed 2 | . . . . . . 2 . . . . Critical Strikes 18 | . . 1 . 1 2 3 1 4 2 4 Burn 4 | . . . . . . . 1 . . 3 Destroy 5 | . . 1 . 1 . 2 . 1 . . Blast 5 | . . . . . . 1 . 3 . 1 Sever 4 | . . . . . 2 . . . 2 . Melee Attacks 149 | . . 8 19 . 39 . 30 6 41 6 Impact 6 | . . . . . . . . . . 6 Slashing 143 | . . 8 19 . 39 . 30 6 41 . Piercing . | . . . . . . . . . . . Sneak Attacks 2 | . . . . . . . 2 . . . Combat Hostiles 1 | . . . . . . . 1 . . . Follow-up Attacks . | . . . . . . . . . . . Damage Inflicted 20168 | 68 956 297 513 1134 2740 1981 2021 2256 1170 7032 Guns 9728 | 68 859 297 303 1134 1695 1470 1105 951 13 1833 Cannons 1416 | . . . . . 42 511 . 786 . 77 Explosions 6486 | . 97 . . . . . 696 456 304 4933 Melee 2511 | . . . 210 . 1003 . 210 63 853 172 Ramming 27 | . . . . . . . 10 . . 17 Kinetic 8293 | 17 215 297 303 1134 1737 1649 48 1663 13 1217 Thermal 2341 | 51 97 . . . . 332 1057 25 . 779 Explosive 6089 | . . . . . . . 696 456 304 4633 Electromagnetic 907 | . 644 . . . . . . 49 . 214 Impact 172 | . . . . . . . . . . 172 Slashing 2339 | . . . 210 . 1003 . 210 63 853 . Piercing . | . . . . . . . . . . . Highest Corruption 3 | . . . . . . 1 2 3 3 3 Average Corruption 1 | . . . . . . 1 1 2 3 1 Corruption Purged 5 | . . . . . . . . . . 5 Corruption Blocked . | . . . . . . . . . . . Effects 102 | . . . . . . 5 21 32 34 10 Message Errors 24 | . . . . . . 1 6 6 8 3 Matter Fused 18 | . . . . . . 1 3 7 6 1 Heat Flow Errors 10 | . . . . . . . 3 1 5 1 Energy Discharges 16 | . . . . . . 1 3 4 7 1 Parts Rejected 1 | . . . . . . . . . . 1 Data Loss (minor) 17 | . . . . . . 1 2 8 5 1 Data Loss (major) 4 | . . . . . . . . 2 1 1 Misfires 8 | . . . . . . 1 3 2 1 1 Alerts 2 | . . . . . . . 1 . 1 . Weapon Failures 2 | . . . . . . . . 2 . . Overload Shots . | . . . . . . . . . . . Overflow Damage 412 | . 17 . . . 82 24 24 62 25 178 Projectiles 71 | . . . . . . 24 . 11 . 36 Explosions 227 | . 17 . . . . . 24 51 . 135 Melee 114 | . . . . . 82 . . . 25 7 Knockbacks 12 | . . . . . . 7 . 4 . 1 Impact 1 | . . . . . . . . . . 1 Kinetic 11 | . . . . . . 7 . 4 . . Secondary . | . . . . . . . . . . . Self-Inflicted Damage 509 | . 21 . . 84 . . 89 . 41 274 Shots 17 | . 1 . . 1 . . 4 . 1 10 Rammed 1 | . . . . . . . . . . 1 Targets Rammed 1 | . . . . . . . . . . 1 Kicked . | . . . . . . . . . . . Crushed . | . . . . . . . . . . . Highest Temperature 702 | 70 226 49 188 214 38 186 365 196 240 702 Average Temperature 82 | 31 63 21 109 69 9 70 73 27 89 132 Received Heat Transfer 3748 | . 225 114 312 171 675 321 398 318 278 936 Effects 16 | . . . . . . . 3 . . 13 Interference 10 | . . . . . . . 3 . . 7 Matter Decay 5 | . . . . . . . . . . 5 Damage (major) 1 | . . . . . . . . . . 1 Siege Activations . | . . . . . . . . . . . Robots Corrupted . | . . . . . . . . . . . Combat Hostiles . | . . . . . . . . . . . Parts Fried 1 | . 1 . . . . . . . . . Impact Corruptions 1 | . . . . . . . . . . 1 Robots Melted 1 | . . . . . . . 1 . . . Combat Hostiles 1 | . . . . . . . 1 . . . Parts Melted 2 | . . . . . . . 2 . . . Heat Transferred 3945 | 148 200 . . . . 629 1755 74 . 1139 Parts Sabotaged . | . . . . . . . . . . . Parts Stolen . | . . . . . . . . . . . Parts Stripped . | . . . . . . . . . . . Power Chain Reactions 2 | . 2 . . . . . . . . . Alert | -11 -10 -10 -10 -8 -8 -7 -7 -7 -7 -7 ------- Run | Yrd Mat Min Sub Mat Gar Fac Gar Fac Gar Fac Peak Influence 2057 | 10 213 217 . 269 932 1090 2057 955 1552 1858 Initial 935 | . 5 . . . 146 423 575 935 420 705 Average 808 | 4 54 78 . 113 582 646 1236 796 1042 1381 Maximum Alert Level 5 | . 1 1 . 1 3 3 5 3 4 5 Low Security (%) 18 | 100 95 88 . 80 3 . . . . . Level 1 3 | . 4 11 . 19 16 . . . . . Level 2 17 | . . . . . 52 67 16 9 6 . Level 3 33 | . . . . . 27 32 32 90 47 14 Level 4 20 | . . . . . . . 25 . 46 64 Level 5 6 | . . . . . . . 24 . . 16 High Security . | . . . . . . . . . . 4 Max Security . | . . . . . . . . . . . Squads Dispatched 65 | . 2 . . 5 . 17 . 17 . 24 Investigation 15 | . 2 . . 1 . 6 . 6 . . Extermination 14 | . . . . . . 4 . 6 . 4 Reinforcement 11 | . . . . 1 . 1 . 2 . 7 Assault 11 | . . . . . . 1 . 1 . 9 Garrison 14 | . . . . 3 . 5 . 2 . 4 Intercept . | . . . . . . . . . . . Searches Triggered . | . . . . . . . . . . . Construction Impeded 5 | . . . . . . 1 . 1 . 3 Haulers Reinforced 2 | . . . . . . . . . . 2 Active Scanning Responses . | . . . . . . . . . . . Cargo Convoy Interrupts 1 | . . . . . . 1 . . . . Stealth | -11 -10 -10 -10 -8 -8 -7 -7 -7 -7 -7 --------- Run | Yrd Mat Min Sub Mat Gar Fac Gar Fac Gar Fac Distress Signals 6 | . . 1 . 1 . 1 1 . . 2 Communications Jammed . | . . . . . . . . . . . Distress Signals . | . . . . . . . . . . . Times Spotted 299 | . 22 9 6 15 28 40 35 37 29 78 Peak Tracking Total 8 | . 5 3 2 3 6 7 6 4 7 8 Tactical Retreats 10 | . 2 2 . . . 1 . 1 2 2 Traps | -11 -10 -10 -10 -8 -8 -7 -7 -7 -7 -7 ------- Run | Yrd Mat Min Sub Mat Gar Fac Gar Fac Gar Fac Traps Triggered 22 | . 2 . 1 . 2 1 5 . 3 8 Indirectly 2 | . . . . . . . . . . 2 Trap Hack Attempts 4 | . . . . . . 4 . . . . Triggered . | . . . . . . . . . . . Disarmed . | . . . . . . . . . . . Reprogrammed . | . . . . . . . . . . . Reused . | . . . . . . . . . . . Traps Extracted . | . . . . . . . . . . . Installed . | . . . . . . . . . . . Triggered 1 | . . . . . . 1 . . . . Machines | -11 -10 -10 -10 -8 -8 -7 -7 -7 -7 -7 ---------- Run | Yrd Mat Min Sub Mat Gar Fac Gar Fac Gar Fac Machines Disabled 38 | . . . . 5 2 1 3 4 4 19 Max in Single Turn 3 | . . . . 2 1 1 1 2 1 3 Garrison Access 2 | . . . . . . 1 . . . 1 Garrison Relay 7 | . . . . . 1 . 3 . 3 . Machines Repaired . | . . . . . . . . . . . Machines Dismantled . | . . . . . . . . . . . Machines Sabotaged . | . . . . . . . . . . . Overloaded Fab Kills . | . . . . . . . . . . . Hacking | -11 -10 -10 -10 -8 -8 -7 -7 -7 -7 -7 --------- Run | Yrd Mat Min Sub Mat Gar Fac Gar Fac Gar Fac Machines Accessed 49 | . 10 . . 3 1 12 2 15 1 5 Terminals 26 | . 8 . . . 1 7 2 6 1 1 Fabricators 7 | . . . . . . 2 . 3 . 2 Repair Stations 3 | . . . . . . . . 3 . . Recycling Units 5 | . 2 . . 1 . . . . . 2 Scanalyzers 3 | . . . . 1 . 1 . 1 . . Garrison Access 5 | . . . . 1 . 2 . 2 . . Total Hacks 188 | . 39 . . 14 1 55 4 51 3 21 Successful 131 | . 23 . . 12 . 42 2 36 1 15 Failed 57 | . 16 . . 2 1 13 2 15 2 6 Catastrophic 6 | . . . . . 1 2 . 2 . 1 Database Lockouts . | . . . . . . . . . . . Manual 67 | . 27 . . 3 1 16 . 15 . 5 Terminals 80 | . 35 . . . 1 20 4 15 3 2 Fabricators 70 | . . . . . . 30 . 24 . 16 Repair Stations 7 | . . . . . . . . 7 . . Recycling Units 10 | . 4 . . 3 . . . . . 3 Scanalyzers 13 | . . . . 9 . 2 . 2 . . Garrison Access 8 | . . . . 2 . 3 . 3 . . Terminal Hacks 30 | . 12 . . . . 8 2 6 1 1 Part Schematic 3 | . 2 . . . . 1 . . . . Robot Schematic 4 | . . . . . . 3 . 1 . . Robot Analysis 5 | . 5 . . . . . . . . . Open Door 1 | . . . . . . . . . 1 . Open DSF 1 | . . . . . . . . 1 . . Emergency Access Points 1 | . . . . . . . 1 . . . Fabricator Index 2 | . . . . . . . . 1 . 1 Repair Station Index 1 | . . . . . . 1 . . . . Unreport Threat 6 | . 3 . . . . . . 3 . . Recall Investigation 1 | . . . . . . 1 . . . . Zone Layout 4 | . 2 . . . . 2 . . . . Security Stations 1 | . . . . . . . 1 . . . Fabricator Hacks 58 | . . . . . . 27 . 19 . 12 Load Schematic 29 | . . . . . . 14 . 9 . 6 Build 29 | . . . . . . 13 . 10 . 6 Repair Station Hacks 2 | . . . . . . . . 2 . . Scan Component 1 | . . . . . . . . 1 . . Repair 1 | . . . . . . . . 1 . . Recycling Unit Hacks 3 | . 1 . . . . . . . . 2 Retrieve Components 3 | . 1 . . . . . . . . 2 Scanalyzer 11 | . . . . 9 . . . 2 . . Insert Component 5 | . . . . 4 . . . 1 . . Analyze 6 | . . . . 5 . . . 1 . . Garrison Access Hacks 5 | . . . . 1 . 2 . 2 . . Unlock Access 5 | . . . . 1 . 2 . 2 . . Unauthorized Hacks 22 | . 10 . . 2 . 5 . 5 . . Terminals 15 | . 10 . . . . 4 . 1 . . Track 6 | . 5 . . . . 1 . . . . Botnet 7 | . 4 . . . . 2 . 1 . . Disrupt 1 | . 1 . . . . . . . . . Operators 1 | . . . . . . 1 . . . . Fabricators 3 | . . . . . . 1 . 2 . . Prioritize 3 | . . . . . . 1 . 2 . . Repair Stations 1 | . . . . . . . . 1 . . Mechanics 1 | . . . . . . . . 1 . . Recycling Units 2 | . . . . 2 . . . . . . Reject 1 | . . . . 1 . . . . . . Recyclers 1 | . . . . 1 . . . . . . Scanalyzers . | . . . . . . . . . . . Garrison Access 1 | . . . . . . . . 1 . . Reprogram 1 | . . . . . . . . 1 . . Data Cores Recovered 2 | . . . . . . 1 . . . 1 Used . | . . . . . . . . . . . Hacking Detections 41 | . 8 . . 2 1 12 2 12 1 3 Full Trace Events 15 | . 4 . . 1 . 6 . 4 . . Feedback Events . | . . . . . . . . . . . Feedback Blocked . | . . . . . . . . . . . Robot Schematics Acquired 4 | . . . . . . 3 . 1 . . Robots Built 49 | . . . . . . 25 . 14 . 10 Authchips 25 | . . . . . . 12 . 7 . 6 Time 999 | . . . . . . 322 . 284 . 393 Total Robot Build Rating 188 | . . . . . . 99 . 50 . 39 Part Schematics Acquired 8 | . 2 . . 4 . 1 . 1 . . Parts Built 2 | . . . . . . . . 2 . . Authchips . | . . . . . . . . . . . Time 19 | . . . . . . . . 19 . . Total Part Build Rating 14 | . . . . . . . . 14 . . Parts Repaired 1 | . . . . . . . . 1 . . Time 62 | . . . . . . . . 62 . . Parts Recycled . | . . . . . . . . . . . Recycled Matter . | . . . . . . . . . . . Retrieved Matter . | . . . . . . . . . . . Retrieved Components 26 | . 7 . . . . . . . . 19 Parts Scanalyzed 5 | . . . . 4 . . . 1 . . Part Schematics Acquired 5 | . . . . 4 . . . 1 . . Parts Damaged 1 | . . . . 1 . . . . . . Bothacking | -11 -10 -10 -10 -8 -8 -7 -7 -7 -7 -7 ------------ Run | Yrd Mat Min Sub Mat Gar Fac Gar Fac Gar Fac Used RIF Installer 4 | . . . . . 1 . 2 . 1 . Hotswap 1 | . . . . . . . 1 . . . Command Fork 1 | . . . . . . . 1 . . . Robot Detection 1 | . . . . . . . . . 1 . Robots Hacked 9 | . . . . . . 1 3 3 2 . Non-combat 5 | . . . . . . 1 1 3 . . Combat 4 | . . . . . . . 2 . 2 . Robot Hacks Applied 12 | . . . . . . 3 3 4 2 . parse_system 1 | . . . . . . . . 1 . . no_distress 1 | . . . . . . 1 . . . . find_fabricator 1 | . . . . . . 1 . . . . drop_inventory 1 | . . . . . . 1 . . . . amplify_resonance 1 | . . . . . . . . 1 . . formatsys_low 1 | . . . . . . . . 1 . . formatsys_high 6 | . . . . . . . 3 1 2 . Relay Couplers Released 31 | . . . . . 5 4 11 . 9 2 Machine Destruction 28 | . . . . . 5 1 11 . 9 2 Programmers 3 | . . . . . . 3 . . . . Attached 5 | . . . . . . 1 3 . 1 . Fabnet Peak Effective % . | . . . . . . . . . . . Robots Rewired 3 | . . . . . . . . . 3 . Allies Hacked 2 | . . . . . . 1 1 . . . Hacks Repelled 1 | . . . . . . . . 1 . . Allies | -11 -10 -10 -10 -8 -8 -7 -7 -7 -7 -7 -------- Run | Yrd Mat Min Sub Mat Gar Fac Gar Fac Gar Fac Total Allies 69 | . . 1 . . . 25 4 19 10 10 Largest Group 19 | . . 1 . . . 19 12 12 13 11 Highest-Rated Group 604 | . . 31 . . . 604 373 366 459 413 Highest-Rated Ally 95 | . . 31 . . . 32 32 32 95 95 Total Orders 16 | . . . . . . 1 9 3 2 1 STAY 1 | . . . . . . . 1 . . . FOLLOW 2 | . . . . . . . 2 . . . GUARD 5 | . . . . . . . 5 . . . AID 8 | . . . . . . 1 1 3 2 1 Ally Attacks 447 | . . 5 . . . 98 69 80 66 129 Total Damage 17888 | . . 106 . . . 4261 2162 2621 2786 5952 Kills 161 | . . 2 . . . 34 17 28 27 53 Allies Corrupted 3 | . . . . . . . 1 . . 2 Allies Melted . | . . . . . . . . . . . Intel | -11 -10 -10 -10 -8 -8 -7 -7 -7 -7 -7 ------- Run | Yrd Mat Min Sub Mat Gar Fac Gar Fac Gar Fac Robot Analysis Total 5 | . 5 . . . . . . . . . Derelict Logs Recovered 2 | . . 2 . . . . . . . . Drone Launches . | . . . . . . . . . . . Drone Recoveries . | . . . . . . . . . . . Exploration | -11 -10 -10 -10 -8 -8 -7 -7 -7 -7 -7 ------------- Run | Yrd Mat Min Sub Mat Gar Fac Gar Fac Gar Fac Turns Passed 17172 | 69 2003 561 872 599 1412 2027 2435 2544 1894 2756 Spaces Moved 6810 | 35 602 147 444 169 522 836 942 959 847 1307 Core 146 | 10 . . . . . . . . . 136 Treads 3416 | 25 602 147 63 110 522 528 918 501 . . Legs 2500 | . . . . . . . 24 458 847 1171 Wheels 748 | . . . 381 59 . 308 . . . . Hover . | . . . . . . . . . . . Flight . | . . . . . . . . . . . Fastest Speed 50 | 50 160 320 130 116 160 110 161 161 120 50 Average Speed 202 | 128 289 320 158 204 204 160 222 215 188 175 Slowest Speed 340 | 160 320 320 340 250 250 240 330 255 190 260 Overloaded Moves . | . . . . . . . . . . . Propulsion Burnouts . | . . . . . . . . . . . Robots Hopped . | . . . . . . . . . . . Cave-ins Triggered . | . . . . . . . . . . . Exploration Rate (%) 43 | 3 91 59 15 13 52 26 85 29 65 44 Regions Visited 10 Branch Regions 2 Pre-discovered Areas 1 | . . 1 . . . . . . . . Known Exits Taken 3 | . . . . 1 . 1 . 1 . . Unknown Exits Taken 4 | 1 1 1 1 . . . . . . . Scrap Searched 9 | . . . 9 . . . . . . . Spaces Dug 67 | . . 1 . . 2 . 23 30 . 11 Terrain Destroyed 505 | . 6 1 . 32 2 4 144 79 12 225 Melee 7 | . . 1 . . 2 . 1 2 . 1 Projectile 38 | . . . . 3 . 4 . 15 . 16 AOE 460 | . 6 . . 29 . . 143 62 12 208 Terrain Rammed 1 | . . . . . . . 1 . . . Walls Destroyed . | . . . . . . . . . . . Machines Disabled . | . . . . . . . . . . . Actions | -11 -10 -10 -10 -8 -8 -7 -7 -7 -7 -7 --------- Run | Yrd Mat Min Sub Mat Gar Fac Gar Fac Gar Fac Total 9287 | 52 781 188 532 368 714 1435 1167 1334 1084 1632 Wait 1184 | . 74 1 3 87 . 428 32 268 112 179 Move 6803 | 34 601 146 443 169 521 836 941 959 846 1307 Hop . | . . . . . . . . . . . Pick Up 280 | 7 37 4 14 30 42 45 43 15 19 24 Fast Attach . | . . . . . . . . . . . Attach 109 | 7 3 1 4 12 7 24 3 14 9 25 Detach 7 | . . . . . . . . 2 4 1 Swap 129 | . 9 1 12 10 22 19 28 8 6 14 Drop 181 | . 9 3 10 28 30 28 40 10 14 9 Fire 398 | 4 48 24 27 32 53 51 40 52 6 61 Melee 149 | . . 8 19 . 39 . 30 6 41 6 Ram 2 | . . . . . . . 1 . . 1 Kick . | . . . . . . . . . . . Crush . | . . . . . . . . . . . Escape Stasis 23 | . . . . . . . 8 . 10 5 Rewire 18 | . . . . . . . 1 . 17 . Trap 4 | . . . . . . 4 . . . . Miscellaneous . | . . . . . . . . . . . Route ------- -11/Scrapyard -10/Materials (discovered 4 exits: [*Mat x3] / [*Min]) -10/Mines -10/Subcaves -8/Materials -8/Garrison (discovered 2 exits: *Fac x2) -7/Factory -7/Garrison (discovered 3 exits: *Fac x3) -7/Factory (discovered 3 exits: [*Fac] / Gar / Gar) -7/Garrison (discovered 4 exits: [*Fac x3] / *Fac) -7/Factory (discovered 1 exit: [*Fac]) History --------- Turn | Location | Event 14 | -11/Scrapyard | Discovered new exit (range 15) 70 | -11/Scrapyard | Entered Materials 314 | -10/Materials | Build established: Mutant 501 | -10/Materials | Discovered new exit (range 16) 1123 | -10/Materials | Discovered new exit (range 7) 1610 | -10/Materials | Discovered new exit (range 13) 2000 | -10/Materials | Discovered new exit (range 17) 2073 | -10/Materials | Entered Mines 2076 | -10/Mines | Received a Mining Laser from a helpful Derelict 2133 | -10/Mines | Learned Materials trap positions 2159 | -10/Mines | Learned location of Storage (-9) 2625 | -10/Mines | Discovered new exit (range 3) 2634 | -10/Mines | Entered Subcaves 2744 | -10/Subcaves | Core integrity fell below 50% 3248 | -10/Subcaves | Discovered new exit (range 10) 3506 | -10/Subcaves | Entered Materials 3506 | -8/Materials | Evolved 4 slots: Propulsion x2, Utility x1, Weapon x1 3507 | -8/Materials | Loaded intel: 13 trap records 3679 | -8/Materials | Garrison activated, responded to threat 4105 | -8/Materials | Identified exit to Garrison 4105 | -8/Materials | Entered Garrison 4135 | -8/Garrison | Installed Relay Interface Framework 4273 | -8/Garrison | Triggered checkpoint 4276 | -8/Garrison | Triggered checkpoint 4371 | -8/Garrison | Triggered checkpoint 4433 | -8/Garrison | Triggered checkpoint 4664 | -8/Garrison | Discovered new exit (range 11) 4771 | -8/Garrison | Build established: Scavenger-Mutant 4851 | -8/Garrison | Triggered checkpoint 5059 | -8/Garrison | Garrison Relay disabled 5184 | -8/Garrison | Build established: Scavenger-Tank 5486 | -8/Garrison | Discovered new exit (range 11) 5517 | -8/Garrison | Entered Factory 5517 | -7/Factory | Evolved 2 slots: Utility x1, Weapon x1 6188 | -7/Factory | Build established: Scavenger-Skirmisher 6551 | -7/Factory | Fabricated Y-54 Guardian (x2) 6558 | -7/Factory | Identified exit to Garrison 6608 | -7/Factory | Fabricated Y-54 Guardian (x2) 6631 | -7/Factory | Fabricated Y-54 Guardian (x2) 6654 | -7/Factory | Fabricated Y-54 Guardian (x2) 6676 | -7/Factory | Fabricated Y-54 Guardian (x2) 6699 | -7/Factory | Fabricated Y-54 Guardian (x2) 6721 | -7/Factory | Fabricated Y-54 Guardian (x2) 6743 | -7/Factory | Fabricated Y-54 Guardian? 6791 | -7/Factory | Fabricated Y-54 Guardian (x2) 6796 | -7/Factory | Lost 4 allies 6813 | -7/Factory | Fabricated Y-54 Guardian (x2) 6835 | -7/Factory | Fabricated Y-54 Guardian (x2) 6858 | -7/Factory | Fabricated Y-54 Guardian (x2) 6930 | -7/Factory | Build established: Commander-Gunner 6935 | -7/Factory | Lost 5 allies 7305 | -7/Factory | Garrison activated, responded to threat 7340 | -7/Factory | Fabricated M-28 Smith (x1) 7403 | -7/Factory | Cargo convoy interrupted 7544 | -7/Factory | Identified exit to Garrison 7544 | -7/Factory | Entered Garrison 7544 | -7/Garrison | Accompanied by 12 allies 7620 | -7/Garrison | Triggered checkpoint 7647 | -7/Garrison | Garrison Relay disabled 7823 | -7/Garrison | Learned Factory security intel 7953 | -7/Garrison | Triggered checkpoint 7964 | -7/Garrison | Triggered checkpoint 7985 | -7/Garrison | Triggered checkpoint 7992 | -7/Garrison | Triggered checkpoint 8033 | -7/Garrison | Lost 6 allies 8299 | -7/Garrison | Build established: Bothacker-Gunner 8344 | -7/Garrison | Discovered new exit (range 15) 8428 | -7/Garrison | Triggered checkpoint 8467 | -7/Garrison | Heavy support dispatched to Factory 8501 | -7/Garrison | Expanded RIF knowledge: Command Fork 8695 | -7/Garrison | Lost 3 allies 8952 | -7/Garrison | Triggered checkpoint 8996 | -7/Garrison | Build established: Bothacker-Tank 9026 | -7/Garrison | Garrison Relay disabled 9046 | -7/Garrison | Triggered checkpoint 9119 | -7/Garrison | Heavy support dispatched to Factory 9156 | -7/Garrison | Discovered new exit (range 12) 9413 | -7/Garrison | Expanded RIF knowledge: Hotswap 9459 | -7/Garrison | Discovered new exit (range 11) 9464 | -7/Garrison | Triggered checkpoint 9499 | -7/Garrison | Garrison Relay disabled 9833 | -7/Garrison | Build established: Bothacker-Gunner 9979 | -7/Garrison | Entered Factory 9979 | -7/Factory | Accompanied by 3 allies 9983 | -7/Factory | Identified exit to DSF 10065 | -7/Factory | Identified exit to Garrison 10119 | -7/Factory | Garrison activated, responded to threat 10161 | -7/Factory | Lost 5 allies 10224 | -7/Factory | Build established: Hacker-Gunner 10379 | -7/Factory | First assault squad dispatched 11205 | -7/Factory | Fabricated Y-54 Guardian (x2) 11234 | -7/Factory | Fabricated M-28 Smith (x1) 11264 | -7/Factory | Fabricated M-28 Smith (x1) 11305 | -7/Factory | Fabricated Y-54 Guardian? 11409 | -7/Factory | Fabricated Y-54 Guardian (x2) 11432 | -7/Factory | Fabricated Y-54 Guardian (x2) 11455 | -7/Factory | Fabricated Y-54 Guardian (x2) 11474 | -7/Factory | Fabricated Myomer Leg (x2) 11604 | -7/Factory | Build established: Commander-Mutant 11709 | -7/Factory | Repaired Hvy. Siege Treads 11881 | -7/Factory | Fabricated K-01 Serf (x1) 11892 | -7/Factory | Discovered new exit (range 8) 12041 | -7/Factory | P-60 Hacker assimilated allied Guardian 4*30 12069 | -7/Factory | Fabricated O-24 Administrator? 12247 | -7/Factory | Build established: Commander-Tank 12447 | -7/Factory | Garrison activated, responded to threat 12513 | -7/Factory | Identified exit to Garrison 12523 | -7/Factory | Entered Garrison 12523 | -7/Garrison | Accompanied by 12 allies 12527 | -7/Garrison | Triggered checkpoint 12607 | -7/Garrison | Triggered checkpoint 12610 | -7/Garrison | Triggered checkpoint 12635 | -7/Garrison | Triggered checkpoint 12663 | -7/Garrison | Lost 7 allies 12797 | -7/Garrison | Triggered checkpoint 12829 | -7/Garrison | Expanded RIF knowledge: Robot Detection 12934 | -7/Garrison | Build established: Hacker-Mutant 13021 | -7/Garrison | Triggered checkpoint 13034 | -7/Garrison | Core integrity fell below 50% 13079 | -7/Garrison | Garrison Relay disabled 13215 | -7/Garrison | Discovered new exit (range 10) 13390 | -7/Garrison | Rescued a captive Derelict 13391 | -7/Garrison | Rescued a captive Derelict 13469 | -7/Garrison | Build established: Commander-Mutant 13474 | -7/Garrison | Garrison Relay disabled 13620 | -7/Garrison | Discovered new exit (range 8) 13669 | -7/Garrison | Triggered checkpoint 13687 | -7/Garrison | Discovered new exit (range 5) 13929 | -7/Garrison | Triggered checkpoint 13958 | -7/Garrison | Garrison Relay disabled 14021 | -7/Garrison | Discovered new exit (range 13) 14034 | -7/Garrison | Found embedded Infiltrators 14267 | -7/Garrison | Build established: Commander-Gunner 14417 | -7/Garrison | Entered Factory 14417 | -7/Factory | Accompanied by 11 allies 14654 | -7/Factory | Garrison activated, responded to threat 14991 | -7/Factory | Garrison activated, responded to threat 15011 | -7/Factory | Build established: Hacker-Gunner 15217 | -7/Factory | First assault squad dispatched 15271 | -7/Factory | Fabricated M-28 Smith (x1) 15334 | -7/Factory | Lost 5 allies 15339 | -7/Factory | Fabricated I-36 Angel (x1) 15409 | -7/Factory | Fabricated Y-54 Guardian (x2) 15477 | -7/Factory | Fabricated Y-54 Guardian (x2) 15753 | -7/Factory | Build established: Commander-Tank 15906 | -7/Factory | Fabricated Y-54 Guardian? 16328 | -7/Factory | Lost 4 allies 16457 | -7/Factory | Fabricated Y-54 Guardian? 16605 | -7/Factory | Build established: Hacker-Tank 16605 | -7/Factory | Lost 3 allies 16728 | -7/Factory | Lost 4 parts (1n1u2w) 16959 | -7/Factory | Core integrity fell below 20% 16985 | -7/Factory | Lost 5 parts (1p1u3w) 17060 | -7/Factory | High security lockdown imminent 17094 | -7/Factory | Released all parts (7) 17104 | -7/Factory | Discovered new exit (range 6) 17124 | -7/Factory | Lost 3 parts (3n) 17140 | -7/Factory | High security lockdown engaged 17173 | -7/Factory | Destroyed by S-27 Virus with Autogun Last Messages --------------- 17094_ Extracted 1 energy. 17096_ Dropped Greatsword. 17098_ Acquired Authchip [R/Combat]. 17099_ Acquired 12 matter. 17100_ Acquired 63 matter. 17104_ EXIT=FOUND 17108_ K-01 Serf exits level. 17110_ ALERT: Machine network offline. 17110_ U-05 Engineer exits level. 17117_ K-01 Serf exits level. 17118_ Acquired 2 matter. 17119_ Acquired 4 matter. 17125_ ALERT: Performing unscheduled system reset. 17140_ ALERT: Lockdown in effect, collecting threat data. 17148_ Door malfunctions. 17148_ Hacking Suite destroyed. 17160_ ALERT: Assault forces dispatched. 17173_ Slammed into S-27 Virus. Map ----- +----------------------------------------------------+ | #?????????????????????????????????? | | #?????????????????????????????????? | | /## #?????????????????????????????????? | | # ###+####??????????????????????????? | | # #??????????????????????????? | | + #??????????????????????????? | | # #??????????????????????????? | | # #??????????????????????????? | | " # #??????????????????????????? | | " #########+##### #??????????????????????????? | | #?????? ??# #########??????????????????? | | ###????""" """" # ???????????????? | | ????? """" """" # ???????????????? | | ???? """" """" # """ """ """ ""???#????????????? | | ??????"""" """" # """ """ """ ???? #????????????? | | ???????""" """" # """ """ """ """ #????????????? | | ????????"" ?????# #????????????? | | ???????? ?????# """ """ """ [ #????????????? | | ???????? ?????# """ """ """ #????????????? | | ???????? [?????# """ """ """ #????????????? | | ????????? ?????# " " ?????????????? | | ????????? ??????# "Y" ??????????????? | | ????????????????# """ ??????????????? | | ????????????????#########/########???????????????? | | ???????????????????# ss #????????????????? | | ???????????????????# @ #????????????????? | | ???????????????????# #????????????????? | | ???????????????????# #????????????????? | | ???????????????????# #????????????????? | | ???????????????????# #????????????????? | | ???????????????????# #????????????????? | | ???????????????????# #????????????????? | | ???????????????????# #????????????????? | | ???????????????????# #????????????????? | | ???????????????????# #????????????????? | | ???????????????????# #????????????????? | | ???????????????????##############????????????????? | | ?????????????????????????????????????????????????? | | ?????????????????????????????????????????????????? | | ?????????????????????????????????????????????????? | | ?????????????????????????????????????????????????? | | ?????????????????????????????????????????????????? | | ?????????????????????????????????????????????????? | | ?????????????????????????????????????????????????? | | ?????????????????????????????????????????????????? | | ?????????????????????????????????????????????????? | | ?????????????????????????????????????????????????? | | ?????????????????????????????????????????????????? | | ?????????????????????????????????????????????????? | | ?????????????????????????????????????????????????? | +----------------------------------------------------+ Best States ------------- Heat Dissipation 59 Energy Generation 21 Energy Capacity 1100 Matter Stores 500 Matter Capacity 500 Sight Range 16 Robot Scan Range 14 Terrain Scan Density 10 Armor Coverage 225 Resistance: KI 50 Resistance: TH 20 Resistance: EX 20 Resistance: EM 20 Resistance: I 20 Resistance: S 20 Resistance: P 20 Weapon Shielding 33 Evasion (%) 50 Recoil Reduction 4 Offensive Hacking 20 Defensive Hacking 10 Relay Coupler Types 1 Relay Coupler Value 35 Authchip Count 13 Item Schematics ----------------- Hcp. Storage Unit | -10/Materials | Hacked Wheel | -10/Materials | Hacked Hacking Suite | -8/Materials | Scanalyzed Lgt. Treads | -8/Materials | Scanalyzed Enh. Flamer | -8/Materials | Scanalyzed Lgt. Armor Plating | -8/Materials | Scanalyzed Adv. Assault Cannon | -7/Factory | Hacked Myomer Leg | -7/Factory | Scanalyzed Robot Schematics ------------------ Y-54 Guardian | -7/Factory | Hacked M-28 Smith | -7/Factory | Hacked O-24 Administrator | -7/Factory | Hacked I-36 Angel | -7/Factory | Hacked Fabricated ------------ Y-54 Guardian | x2 | -7/Factory | Authchip Y-54 Guardian | x2 | -7/Factory | Authchip Y-54 Guardian | x2 | -7/Factory | Authchip Y-54 Guardian | x2 | -7/Factory | Authchip Y-54 Guardian | x2 | -7/Factory | Authchip Y-54 Guardian | x2 | -7/Factory | Authchip Y-54 Guardian | x2 | -7/Factory | Authchip Y-54 Guardian | x2 | -7/Factory | Authchip Y-54 Guardian | x2 | -7/Factory | Authchip Y-54 Guardian | x2 | -7/Factory | Authchip Y-54 Guardian | x2 | -7/Factory | Authchip Y-54 Guardian | x2 | -7/Factory | Authchip M-28 Smith | x1 | -7/Factory Y-54 Guardian | x2 | -7/Factory | Preloaded, Authchip M-28 Smith | x1 | -7/Factory | Authchip M-28 Smith | x1 | -7/Factory | Authchip Y-54 Guardian | x2 | -7/Factory | Authchip Y-54 Guardian | x2 | -7/Factory | Authchip Y-54 Guardian | x2 | -7/Factory | Authchip Y-54 Guardian | x2 | -7/Factory | Authchip Myomer Leg | x2 | -7/Factory K-01 Serf | x1 | -7/Factory | Preloaded O-24 Administrator | x1 | -7/Factory M-28 Smith | x1 | -7/Factory | Authchip I-36 Angel | x1 | -7/Factory | Authchip Y-54 Guardian | x2 | -7/Factory | Authchip Y-54 Guardian | x2 | -7/Factory | Authchip Y-54 Guardian | x2 | -7/Factory | Authchip Y-54 Guardian | x2 | -7/Factory | Authchip Alien Tech Used ----------------- None Achievements -------------- None Challenges ------------ None Game ------ Seed LauncherBackupMediator Manual? 0 Play Time 02:05:49 Cumulative 459.2 hours Start 2024.07.11 @ 20:56:40 End 2024.07.11 @ 23:01:39 Sessions 1 Manual Loads 0 Difficulty Adventurer Special Mode None Game No. 80 Rogue 0 Adventurer 80 Explorer 0 Win Type - Total 4 Types 2/0/0/2/0/0/0/0/0 Lore% 58 Gallery% 79 Achievement% 67 Wizard Run 0 Options --------- Layout 2 ASCII 0 Keyboard 0 Movement Mouse Keybinds 0 Fullscreen 1 Font 24/Smallcaps Map View 50x49 Zoom Use 17% Tactical HUD 1 Map Filters NONE Filters NONE Steam 1 RUN: 95da15b9-d1e6-4c22-a257-ae5e8c2f2d14